[Event "December 12 Early 2023"]
[Site "https://www.chess.com"]
[Date "2023.12.12"]
[Round "1"]
[White "Weetik, Vjacheslav"]
[Black "Hoffmann, Asa"]
[Result "1-0"]
[Board "87"]
[TimeControl "180+1"]
[WhiteFideId "4153472"]
[BlackFideId "2001470"]
[WhiteElo "2757"]
[BlackElo "2428"]
[WhiteTeam "RUS"]
[BlackTeam "USA"]
[WhiteClock "0:00:10"]
[BlackClock "0:00:51"]

1. e4 {[%clk 0:02:56]}  d6 {[%clk 0:02:59]} 2. d4 {[%clk 0:02:56]}  c6 {[%clk 0:02:56]} 3. Nc3 {[%clk 0:02:55]}  a6 {[%clk 0:02:56]} 4. a4 {[%clk 0:02:50]}  Nf6 {[%clk 0:02:51]} 5. Nf3 {[%clk 0:02:43]}  Bg4 {[%clk 0:02:50]} 6. Be2 {[%clk 0:02:41]}  e6 {[%clk 0:02:50]} 7. h3 {[%clk 0:02:38]}  Bh5 {[%clk 0:02:50]} 8. O-O {[%clk 0:02:22]}  d5 {[%clk 0:02:48]} 9. e5 {[%clk 0:02:20]}  Nfd7 {[%clk 0:02:47]} 10. Ng5 {[%clk 0:02:17]}  Bg6 {[%clk 0:02:46]} 11. f4 {[%clk 0:02:15]}  Be7 {[%clk 0:02:44]} 12. Be3 {[%clk 0:02:11]}  h6 {[%clk 0:02:40]} 13. Nxe6 {[%clk 0:01:51]}  fxe6 {[%clk 0:02:38]} 14. Bh5 {[%clk 0:01:49]}  Bf7 {[%clk 0:02:05]} 15. Bxf7+ {[%clk 0:01:27]}  Kxf7 {[%clk 0:02:04]} 16. f5 {[%clk 0:01:28]}  Kg8 {[%clk 0:01:50]} 17. Qh5 {[%clk 0:01:15]}  Nf8 {[%clk 0:01:46]} 18. fxe6 {[%clk 0:01:09]}  g6 {[%clk 0:01:44]} 19. Qg4 {[%clk 0:00:55]}  Bg5 {[%clk 0:01:34]} 20. Bxg5 {[%clk 0:00:51]}  Qxg5 {[%clk 0:01:33]} 21. Qxg5 {[%clk 0:00:43]}  hxg5 {[%clk 0:01:32]} 22. e7 {[%clk 0:00:44]}  Nbd7 {[%clk 0:01:28]} 23. exf8=Q+ {[%clk 0:00:43]}  Nxf8 {[%clk 0:01:27]} 24. Rf6 {[%clk 0:00:39]}  Re8 {[%clk 0:01:24]} 25. a5 {[%clk 0:00:34]}  Ne6 {[%clk 0:01:22]} 26. Rxg6+ {[%clk 0:00:17]}  Kh7 {[%clk 0:01:19]} 27. Rf6 {[%clk 0:00:17]}  Nxd4 {[%clk 0:01:17]} 28. Rf7+ {[%clk 0:00:17]}  Kg6 {[%clk 0:01:16]} 29. Rxb7 {[%clk 0:00:16]}  Nxc2 {[%clk 0:01:15]} 30. Rf1 {[%clk 0:00:15]}  Rhf8 {[%clk 0:01:15]} 31. Rxf8 {[%clk 0:00:14]}  Rxf8 {[%clk 0:01:14]} 32. Rb6 {[%clk 0:00:15]}  Kf5 {[%clk 0:01:12]} 33. Rxc6 {[%clk 0:00:13]}  Kxe5 {[%clk 0:01:12]} 34. Rxa6 {[%clk 0:00:13]}  Rb8 {[%clk 0:01:11]} 35. Rb6 {[%clk 0:00:13]}  Ra8 {[%clk 0:01:11]} 36. a6 {[%clk 0:00:13]}  d4 {[%clk 0:01:11]} 37. Nd1 {[%clk 0:00:12]}  Kd5 {[%clk 0:01:07]} 38. b4 {[%clk 0:00:12]}  d3 {[%clk 0:01:05]} 39. b5 {[%clk 0:00:11]}  Nd4 {[%clk 0:01:05]} 40. Rg6 {[%clk 0:00:10]}  Ne6 {[%clk 0:01:02]} 41. Kf2 {[%clk 0:00:08]}  Rb8 {[%clk 0:00:58]} 42. Ke3 {[%clk 0:00:09]}  Rxb5 {[%clk 0:00:58]} 43. Nc3+ {[%clk 0:00:09]}  Kc4 {[%clk 0:00:57]} 44. Nxb5 {[%clk 0:00:10]}  Kxb5 {[%clk 0:00:51]} 45. Rxe6 {[%clk 0:00:10]} 1-0

[Event "December 12 Early 2023"]
[Site "https://www.chess.com"]
[Date "2023.12.12"]
[Round "1"]
[White "Begunov, Konstantin"]
[Black "Goh, Wei Ming Kevin"]
[Result "0-1"]
[Board "90"]
[TimeControl "180+1"]
[WhiteFideId "4118510"]
[BlackFideId "5800706"]
[WhiteElo "2423"]
[BlackElo "2756"]
[WhiteTeam "RUS"]
[BlackTeam "SGP"]
[WhiteClock "0:00:11"]
[BlackClock "0:01:50"]

1. d4 {[%clk 0:03:00]}  Nf6 {[%clk 0:02:58]} 2. c4 {[%clk 0:03:00]}  e6 {[%clk 0:02:58]} 3. Nf3 {[%clk 0:03:00]}  c5 {[%clk 0:02:58]} 4. Nc3 {[%clk 0:02:59]}  cxd4 {[%clk 0:02:57]} 5. Nxd4 {[%clk 0:03:00]}  Nc6 {[%clk 0:02:58]} 6. g3 {[%clk 0:03:00]}  Qb6 {[%clk 0:02:53]} 7. Nc2 {[%clk 0:02:59]}  Bc5 {[%clk 0:02:50]} 8. e3 {[%clk 0:02:58]}  O-O {[%clk 0:02:50]} 9. Bg2 {[%clk 0:02:58]}  Ne5 {[%clk 0:02:47]} 10. b3 {[%clk 0:02:49]}  Qc7 {[%clk 0:02:47]} 11. O-O {[%clk 0:02:44]}  a6 {[%clk 0:02:46]} 12. Bb2 {[%clk 0:02:41]}  Rb8 {[%clk 0:02:42]} 13. Rc1 {[%clk 0:02:33]}  b6 {[%clk 0:02:39]} 14. Na4 {[%clk 0:02:29]}  Be7 {[%clk 0:02:38]} 15. Qd4 {[%clk 0:02:19]}  d6 {[%clk 0:02:30]} 16. Rfd1 {[%clk 0:02:03]}  Bd7 {[%clk 0:02:22]} 17. Nc3 {[%clk 0:01:59]}  Bc6 {[%clk 0:02:22]} 18. e4 {[%clk 0:01:51]}  Rfd8 {[%clk 0:02:14]} 19. Ne3 {[%clk 0:01:48]}  Ba8 {[%clk 0:02:10]} 20. h3 {[%clk 0:01:48]}  Rbc8 {[%clk 0:02:09]} 21. Kh2 {[%clk 0:01:43]}  Qb8 {[%clk 0:02:09]} 22. Na4 {[%clk 0:01:23]}  b5 {[%clk 0:02:05]} 23. cxb5 {[%clk 0:01:17]}  axb5 {[%clk 0:02:06]} 24. Nb6 {[%clk 0:01:09]}  Rxc1 {[%clk 0:02:01]} 25. Rxc1 {[%clk 0:01:10]}  Nc6 {[%clk 0:02:01]} 26. Rxc6 {[%clk 0:00:40]}  Bxc6 {[%clk 0:02:00]} 27. a4 {[%clk 0:00:37]}  e5 {[%clk 0:01:55]} 28. Qb4 {[%clk 0:00:20]}  Qxb6 {[%clk 0:01:54]} 29. Nc4 {[%clk 0:00:11]}  Qxf2 {[%clk 0:01:50]} 0-1

[Event "December 12 Early 2023"]
[Site "https://www.chess.com"]
[Date "2023.12.12"]
[Round "1"]
[White "Gormally, Daniel W"]
[Black "Latorre, Vincent"]
[Result "1-0"]
[Board "91"]
[TimeControl "180+1"]
[WhiteFideId "406465"]
[BlackFideId "2636891"]
[WhiteElo "2754"]
[BlackElo "2423"]
[WhiteTeam "ENG"]
[BlackTeam "CAN"]
[WhiteClock "0:01:41"]
[BlackClock "0:00:00"]

1. d4 {[%clk 0:02:59]}  Nf6 {[%clk 0:02:58]} 2. c4 {[%clk 0:02:59]}  g6 {[%clk 0:02:59]} 3. Nc3 {[%clk 0:02:59]}  Bg7 {[%clk 0:02:59]} 4. e4 {[%clk 0:02:59]}  d6 {[%clk 0:02:59]} 5. f3 {[%clk 0:03:00]}  O-O {[%clk 0:02:57]} 6. Bg5 {[%clk 0:03:00]}  h6 {[%clk 0:02:53]} 7. Be3 {[%clk 0:03:00]}  c5 {[%clk 0:02:53]} 8. d5 {[%clk 0:03:00]}  e6 {[%clk 0:02:46]} 9. Qd2 {[%clk 0:03:00]}  exd5 {[%clk 0:02:43]} 10. cxd5 {[%clk 0:03:00]}  h5 {[%clk 0:02:41]} 11. Bd3 {[%clk 0:02:57]}  a6 {[%clk 0:02:40]} 12. a4 {[%clk 0:02:55]}  Nbd7 {[%clk 0:02:37]} 13. Nh3 {[%clk 0:02:53]}  Ne5 {[%clk 0:02:32]} 14. Nf2 {[%clk 0:02:53]}  h4 {[%clk 0:02:26]} 15. Be2 {[%clk 0:02:45]}  Nh7 {[%clk 0:02:15]} 16. f4 {[%clk 0:02:43]}  Nd7 {[%clk 0:02:12]} 17. O-O {[%clk 0:02:43]}  f5 {[%clk 0:02:12]} 18. exf5 {[%clk 0:02:42]}  gxf5 {[%clk 0:02:12]} 19. Bf3 {[%clk 0:02:39]}  Re8 {[%clk 0:02:08]} 20. Kh1 {[%clk 0:02:36]}  Ndf6 {[%clk 0:02:07]} 21. Nh3 {[%clk 0:02:36]}  Ng4 {[%clk 0:01:49]} 22. Bg1 {[%clk 0:02:36]}  Nhf6 {[%clk 0:01:44]} 23. Ng5 {[%clk 0:02:33]}  Bd7 {[%clk 0:01:38]} 24. h3 {[%clk 0:02:24]}  Nh6 {[%clk 0:01:32]} 25. Ne6 {[%clk 0:02:24]}  Bxe6 {[%clk 0:01:27]} 26. dxe6 {[%clk 0:02:24]}  Rxe6 {[%clk 0:01:20]} 27. Bxb7 {[%clk 0:02:24]}  Rb8 {[%clk 0:01:06]} 28. Bxa6 {[%clk 0:02:18]}  Kh7 {[%clk 0:00:57]} 29. Rae1 {[%clk 0:02:12]}  Rxe1 {[%clk 0:00:48]} 30. Rxe1 {[%clk 0:02:12]}  Qb6 {[%clk 0:00:49]} 31. Bb5 {[%clk 0:02:09]}  Qc7 {[%clk 0:00:30]} 32. Re6 {[%clk 0:02:03]}  d5 {[%clk 0:00:23]} 33. Rc6 {[%clk 0:01:41]}  Qe7 {[%clk 0:00:00]} 34. Bxc5 {[%clk 0:01:41]} 1-0

[Event "December 12 Early 2023"]
[Site "https://www.chess.com"]
[Date "2023.12.12"]
[Round "1"]
[White "Sahin, Sarp"]
[Black "Haug, Havard"]
[Result "0-1"]
[Board "92"]
[TimeControl "180+1"]
[WhiteFideId "51605066"]
[BlackFideId "1547887"]
[WhiteElo "2421"]
[BlackElo "2751"]
[WhiteTeam "TUR"]
[BlackTeam "NOR"]
[WhiteClock "0:00:02"]
[BlackClock "0:00:39"]

1. e4 {[%clk 0:02:55]}  c6 {[%clk 0:02:58]} 2. Nc3 {[%clk 0:02:53]}  d5 {[%clk 0:02:58]} 3. Nf3 {[%clk 0:02:52]}  dxe4 {[%clk 0:02:57]} 4. Nxe4 {[%clk 0:02:53]}  Nf6 {[%clk 0:02:58]} 5. Qe2 {[%clk 0:02:46]}  Na6 {[%clk 0:02:57]} 6. Nxf6+ {[%clk 0:02:43]}  gxf6 {[%clk 0:02:58]} 7. d4 {[%clk 0:02:43]}  Qd5 {[%clk 0:02:56]} 8. Be3 {[%clk 0:02:39]}  Bg4 {[%clk 0:02:54]} 9. h3 {[%clk 0:02:32]}  Bxf3 {[%clk 0:02:53]} 10. Qxf3 {[%clk 0:02:28]}  Qxf3 {[%clk 0:02:53]} 11. gxf3 {[%clk 0:02:28]}  Nc7 {[%clk 0:02:54]} 12. c4 {[%clk 0:02:27]}  O-O-O {[%clk 0:02:52]} 13. O-O-O {[%clk 0:02:26]}  e5 {[%clk 0:02:48]} 14. dxe5 {[%clk 0:02:24]}  Rxd1+ {[%clk 0:02:46]} 15. Kxd1 {[%clk 0:02:25]}  fxe5 {[%clk 0:02:47]} 16. Bxa7 {[%clk 0:02:24]}  c5 {[%clk 0:02:41]} 17. Bb6 {[%clk 0:02:20]}  Ne6 {[%clk 0:02:34]} 18. Bd3 {[%clk 0:02:14]}  Nd4 {[%clk 0:02:28]} 19. Ba5 {[%clk 0:02:11]}  Bh6 {[%clk 0:02:22]} 20. Bc3 {[%clk 0:02:07]}  Nxf3 {[%clk 0:02:19]} 21. Ke2 {[%clk 0:02:06]}  Nd4+ {[%clk 0:02:18]} 22. Bxd4 {[%clk 0:02:06]}  exd4 {[%clk 0:02:19]} 23. Re1 {[%clk 0:02:04]}  Kd7 {[%clk 0:02:11]} 24. Kf3 {[%clk 0:02:03]}  Bg5 {[%clk 0:02:06]} 25. Re5 {[%clk 0:02:01]}  Be7 {[%clk 0:02:02]} 26. Bf5+ {[%clk 0:01:59]}  Kd6 {[%clk 0:01:58]} 27. Rd5+ {[%clk 0:01:59]}  Kc6 {[%clk 0:01:59]} 28. Be4 {[%clk 0:01:59]}  Kc7 {[%clk 0:01:57]} 29. Re5 {[%clk 0:01:54]}  Kd6 {[%clk 0:01:43]} 30. Rd5+ {[%clk 0:01:49]}  Ke6 {[%clk 0:01:35]} 31. Bf5+ {[%clk 0:01:40]}  Kf6 {[%clk 0:01:33]} 32. Be4 {[%clk 0:01:38]}  Ra8 {[%clk 0:01:28]} 33. a3 {[%clk 0:01:34]}  h6 {[%clk 0:01:13]} 34. Rd7 {[%clk 0:01:30]}  Ra4 {[%clk 0:01:07]} 35. Bd5 {[%clk 0:01:08]}  b6 {[%clk 0:01:00]} 36. Rb7 {[%clk 0:01:04]}  Ra6 {[%clk 0:00:58]} 37. Ke4 {[%clk 0:01:01]}  b5 {[%clk 0:00:46]} 38. cxb5 {[%clk 0:00:59]}  Rd6 {[%clk 0:00:46]} 39. a4 {[%clk 0:00:54]}  d3 {[%clk 0:00:46]} 40. a5 {[%clk 0:00:18]}  Rxd5 {[%clk 0:00:40]} 41. Kxd5 {[%clk 0:00:06]}  d2 {[%clk 0:00:39]} 42. a6 {[%clk 0:00:05]}  d1=Q+ {[%clk 0:00:39]} 43. Kc4 {[%clk 0:00:01]}  Qd4+ {[%clk 0:00:39]} 44. Kb3 {[%clk 0:00:01]}  c4+ {[%clk 0:00:40]} 45. Ka2 {[%clk 0:00:01]}  c3 {[%clk 0:00:40]} 46. b3 {[%clk 0:00:01]}  Qd2+ {[%clk 0:00:39]} 47. Ka1 {[%clk 0:00:01]}  c2 {[%clk 0:00:40]} 48. Rb6+ {[%clk 0:00:01]}  Kg7 {[%clk 0:00:40]} 49. Rg6+ {[%clk 0:00:01]}  fxg6 {[%clk 0:00:40]} 50. a7 {[%clk 0:00:02]}  Qc3+ {[%clk 0:00:38]} 51. Ka2 {[%clk 0:00:01]}  c1=N+ {[%clk 0:00:34]} 52. Kb1 {[%clk 0:00:02]}  Nxb3 {[%clk 0:00:35]} 53. Ka2 {[%clk 0:00:02]}  Nd2 {[%clk 0:00:36]} 54. a8=Q {[%clk 0:00:01]}  Qb3+ {[%clk 0:00:37]} 55. Ka1 {[%clk 0:00:02]}  Qc3+ {[%clk 0:00:38]} 56. Ka2 {[%clk 0:00:02]}  Qb3+ {[%clk 0:00:39]} 57. Ka1 {[%clk 0:00:02]}  Qb1# {[%clk 0:00:39]} 0-1

[Event "December 12 Early 2023"]
[Site "https://www.chess.com"]
[Date "2023.12.12"]
[Round "1"]
[White "Sari, Yasin"]
[Black "Gan-Erdene, Sugar"]
[Result "0-1"]
[Board "94"]
[TimeControl "180+1"]
[WhiteFideId "6320902"]
[BlackFideId "4902980"]
[WhiteElo "2419"]
[BlackElo "2749"]
[WhiteTeam "TUR"]
[BlackTeam "MGL"]
[WhiteClock "0:00:02"]
[BlackClock "0:00:05"]

1. d4 {[%clk 0:03:00]}  Nf6 {[%clk 0:02:59]} 2. Bf4 {[%clk 0:03:00]}  d5 {[%clk 0:02:59]} 3. e3 {[%clk 0:03:00]}  e6 {[%clk 0:02:58]} 4. Nf3 {[%clk 0:02:58]}  c5 {[%clk 0:02:58]} 5. c3 {[%clk 0:02:56]}  Nc6 {[%clk 0:02:59]} 6. Nbd2 {[%clk 0:02:50]}  Be7 {[%clk 0:02:58]} 7. Bd3 {[%clk 0:02:49]}  O-O {[%clk 0:02:58]} 8. h3 {[%clk 0:02:46]}  Bd7 {[%clk 0:02:57]} 9. O-O {[%clk 0:02:46]}  Qb6 {[%clk 0:02:57]} 10. Qb3 {[%clk 0:02:37]}  Rac8 {[%clk 0:02:53]} 11. Ne5 {[%clk 0:02:23]}  Nxe5 {[%clk 0:02:49]} 12. dxe5 {[%clk 0:02:21]}  Ne8 {[%clk 0:02:49]} 13. e4 {[%clk 0:02:10]}  Nc7 {[%clk 0:02:42]} 14. Rfe1 {[%clk 0:02:00]}  c4 {[%clk 0:02:39]} 15. Qxb6 {[%clk 0:02:00]}  axb6 {[%clk 0:02:40]} 16. Bc2 {[%clk 0:02:01]}  Na6 {[%clk 0:02:31]} 17. exd5 {[%clk 0:01:57]}  exd5 {[%clk 0:02:32]} 18. Nf3 {[%clk 0:01:53]}  Nc5 {[%clk 0:02:31]} 19. Nd4 {[%clk 0:01:53]}  Be6 {[%clk 0:02:27]} 20. Be3 {[%clk 0:01:45]}  Bd7 {[%clk 0:02:11]} 21. g3 {[%clk 0:01:41]}  Bxh3 {[%clk 0:02:10]} 22. Kh2 {[%clk 0:01:41]}  Bd7 {[%clk 0:02:09]} 23. Rh1 {[%clk 0:01:35]}  Rfe8 {[%clk 0:02:08]} 24. Kg2 {[%clk 0:01:33]}  h6 {[%clk 0:02:01]} 25. Bxh6 {[%clk 0:01:24]}  gxh6 {[%clk 0:02:00]} 26. Rxh6 {[%clk 0:01:25]}  Bf8 {[%clk 0:01:59]} 27. Bh7+ {[%clk 0:01:19]}  Kg7 {[%clk 0:01:54]} 28. Rh5 {[%clk 0:01:20]}  Be7 {[%clk 0:01:50]} 29. Rah1 {[%clk 0:01:16]}  Rh8 {[%clk 0:01:49]} 30. f3 {[%clk 0:01:14]}  Nd3 {[%clk 0:01:44]} 31. Bf5 {[%clk 0:01:08]}  Rxh5 {[%clk 0:01:43]} 32. Rxh5 {[%clk 0:01:09]}  Rd8 {[%clk 0:01:17]} 33. e6 {[%clk 0:00:44]}  fxe6 {[%clk 0:01:12]} 34. Bxe6 {[%clk 0:00:45]}  Nc5 {[%clk 0:01:03]} 35. Nf5+ {[%clk 0:00:42]}  Kf6 {[%clk 0:00:57]} 36. Rh6+ {[%clk 0:00:40]}  Ke5 {[%clk 0:00:53]} 37. f4+ {[%clk 0:00:37]}  Ke4 {[%clk 0:00:53]} 38. Nd4 {[%clk 0:00:29]}  Bxe6 {[%clk 0:00:50]} 39. Nxe6 {[%clk 0:00:30]}  Rd6 {[%clk 0:00:46]} 40. Ng5+ {[%clk 0:00:27]}  Kd3 {[%clk 0:00:45]} 41. Rh7 {[%clk 0:00:27]}  Bxg5 {[%clk 0:00:43]} 42. fxg5 {[%clk 0:00:28]}  Rg6 {[%clk 0:00:43]} 43. Rh6 {[%clk 0:00:25]}  Rxg5 {[%clk 0:00:42]} 44. Rxb6 {[%clk 0:00:26]}  Ne4 {[%clk 0:00:42]} 45. Rxb7 {[%clk 0:00:26]}  Rxg3+ {[%clk 0:00:42]} 46. Kh2 {[%clk 0:00:27]}  Rf3 {[%clk 0:00:42]} 47. a4 {[%clk 0:00:26]}  Rf2+ {[%clk 0:00:41]} 48. Kh3 {[%clk 0:00:25]}  Rf1 {[%clk 0:00:42]} 49. Rb5 {[%clk 0:00:22]}  Rf5 {[%clk 0:00:27]} 50. Kg4 {[%clk 0:00:22]}  Rg5+ {[%clk 0:00:24]} 51. Kf4 {[%clk 0:00:23]}  Kc2 {[%clk 0:00:24]} 52. a5 {[%clk 0:00:22]}  Rg7 {[%clk 0:00:19]} 53. Rxd5 {[%clk 0:00:20]}  Nd2 {[%clk 0:00:19]} 54. Rb5 {[%clk 0:00:17]}  Nb3 {[%clk 0:00:17]} 55. Rb4 {[%clk 0:00:17]}  Rc7 {[%clk 0:00:16]} 56. a6 {[%clk 0:00:18]}  Kxb2 {[%clk 0:00:15]} 57. a7 {[%clk 0:00:18]}  Rxa7 {[%clk 0:00:13]} 58. Rxc4 {[%clk 0:00:18]}  Rf7+ {[%clk 0:00:12]} 59. Ke5 {[%clk 0:00:17]}  Rd7 {[%clk 0:00:13]} 60. Ke6 {[%clk 0:00:17]}  Rd8 {[%clk 0:00:12]} 61. Ke7 {[%clk 0:00:17]}  Rd3 {[%clk 0:00:12]} 62. Rc7 {[%clk 0:00:17]}  Rd5 {[%clk 0:00:11]} 63. c4 {[%clk 0:00:17]}  Rh5 {[%clk 0:00:11]} 64. c5 {[%clk 0:00:17]}  Nxc5 {[%clk 0:00:11]} 65. Kd6 {[%clk 0:00:15]}  Ne4+ {[%clk 0:00:11]} 66. Ke6 {[%clk 0:00:14]}  Kb3 {[%clk 0:00:12]} 67. Rb7+ {[%clk 0:00:13]}  Kc4 {[%clk 0:00:12]} 68. Rc7+ {[%clk 0:00:13]}  Kd4 {[%clk 0:00:12]} 69. Rd7+ {[%clk 0:00:13]}  Ke3 {[%clk 0:00:13]} 70. Ra7 {[%clk 0:00:12]}  Nc5+ {[%clk 0:00:12]} 71. Kd6 {[%clk 0:00:11]}  Kd4 {[%clk 0:00:12]} 72. Ra1 {[%clk 0:00:09]}  Rh6+ {[%clk 0:00:12]} 73. Kc7 {[%clk 0:00:08]}  Kd5 {[%clk 0:00:11]} 74. Rd1+ {[%clk 0:00:09]}  Kc4 {[%clk 0:00:10]} 75. Rc1+ {[%clk 0:00:09]}  Kb5 {[%clk 0:00:09]} 76. Rb1+ {[%clk 0:00:10]}  Ka5 {[%clk 0:00:08]} 77. Ra1+ {[%clk 0:00:10]}  Na4 {[%clk 0:00:09]} 78. Kd7 {[%clk 0:00:10]}  Kb5 {[%clk 0:00:07]} 79. Ke7 {[%clk 0:00:11]}  Nc5 {[%clk 0:00:07]} 80. Kf7 {[%clk 0:00:09]}  Kc6 {[%clk 0:00:07]} 81. Rf1 {[%clk 0:00:09]}  Kd5 {[%clk 0:00:06]} 82. Rf5+ {[%clk 0:00:08]}  Kd4 {[%clk 0:00:07]} 83. Rf6 {[%clk 0:00:07]}  Rh5 {[%clk 0:00:07]} 84. Kg6 {[%clk 0:00:07]}  Re5 {[%clk 0:00:06]} 85. Rf4+ {[%clk 0:00:06]}  Ne4 {[%clk 0:00:05]} 86. Rf5 {[%clk 0:00:06]}  Re6+ {[%clk 0:00:05]} 87. Kg7 {[%clk 0:00:06]}  Nd6 {[%clk 0:00:05]} 88. Ra5 {[%clk 0:00:04]}  Ke4 {[%clk 0:00:04]} 89. Ra4+ {[%clk 0:00:05]}  Kd5 {[%clk 0:00:04]} 90. Ra5+ {[%clk 0:00:05]}  Kc6 {[%clk 0:00:03]} 91. Ra6+ {[%clk 0:00:06]}  Kb5 {[%clk 0:00:03]} 92. Ra1 {[%clk 0:00:05]}  Kb6 {[%clk 0:00:03]} 93. Rb1+ {[%clk 0:00:06]}  Kc6 {[%clk 0:00:03]} 94. Rc1+ {[%clk 0:00:07]}  Kd7 {[%clk 0:00:03]} 95. Rg1 {[%clk 0:00:07]}  Ke7 {[%clk 0:00:03]} 96. Rg6 {[%clk 0:00:07]}  Nf5+ {[%clk 0:00:04]} 97. Kh7 {[%clk 0:00:07]}  Re4 {[%clk 0:00:04]} 98. Rg5 {[%clk 0:00:07]}  Kf6 {[%clk 0:00:04]} 99. Rg6+ {[%clk 0:00:07]}  Kf7 {[%clk 0:00:04]} 100. Rg4 {[%clk 0:00:01]}  Rxg4 {[%clk 0:00:04]} 101. Kh8 {[%clk 0:00:02]}  Rh4# {[%clk 0:00:05]} 0-1

[Event "December 12 Early 2023"]
[Site "https://www.chess.com"]
[Date "2023.12.12"]
[Round "1"]
[White "Salinas Tomas, Daniel"]
[Black "Kozak, Antoni"]
[Result "0-1"]
[Board "96"]
[TimeControl "180+1"]
[WhiteFideId "24597716"]
[BlackFideId "21832030"]
[WhiteElo "2415"]
[BlackElo "2742"]
[WhiteTeam "ESP"]
[BlackTeam "POL"]
[WhiteClock "0:00:10"]
[BlackClock "0:00:53"]

1. Nf3 {[%clk 0:02:48]}  Nf6 {[%clk 0:02:59]} 2. g3 {[%clk 0:02:49]}  d5 {[%clk 0:02:58]} 3. Bg2 {[%clk 0:02:48]}  c6 {[%clk 0:02:59]} 4. O-O {[%clk 0:02:48]}  Bf5 {[%clk 0:02:59]} 5. d4 {[%clk 0:02:46]}  h6 {[%clk 0:02:57]} 6. c4 {[%clk 0:02:45]}  e6 {[%clk 0:02:57]} 7. Qb3 {[%clk 0:02:43]}  Qb6 {[%clk 0:02:57]} 8. c5 {[%clk 0:02:43]}  Qa6 {[%clk 0:02:53]} 9. Nc3 {[%clk 0:02:38]}  Nbd7 {[%clk 0:02:52]} 10. Qd1 {[%clk 0:02:29]}  Be7 {[%clk 0:02:50]} 11. b4 {[%clk 0:02:25]}  b6 {[%clk 0:02:43]} 12. Bf4 {[%clk 0:02:07]}  O-O {[%clk 0:02:41]} 13. a4 {[%clk 0:02:05]}  bxc5 {[%clk 0:02:41]} 14. bxc5 {[%clk 0:02:06]}  g5 {[%clk 0:02:21]} 15. Bd2 {[%clk 0:01:52]}  Rab8 {[%clk 0:02:19]} 16. h4 {[%clk 0:01:40]}  Ne4 {[%clk 0:02:11]} 17. hxg5 {[%clk 0:01:34]}  Nxc3 {[%clk 0:02:10]} 18. Bxc3 {[%clk 0:01:28]}  hxg5 {[%clk 0:02:10]} 19. Qd2 {[%clk 0:01:20]}  f6 {[%clk 0:02:01]} 20. Ne1 {[%clk 0:01:16]}  Rb3 {[%clk 0:01:55]} 21. Nd3 {[%clk 0:01:14]}  Kg7 {[%clk 0:01:46]} 22. Nb4 {[%clk 0:00:44]}  Qb7 {[%clk 0:01:42]} 23. a5 {[%clk 0:00:45]}  Rb8 {[%clk 0:01:35]} 24. a6 {[%clk 0:00:41]}  Qb5 {[%clk 0:01:35]} 25. Nd3 {[%clk 0:00:39]}  Nf8 {[%clk 0:01:13]} 26. Rfc1 {[%clk 0:00:24]}  Bd8 {[%clk 0:01:07]} 27. f3 {[%clk 0:00:21]}  Bc7 {[%clk 0:01:03]} 28. Bf1 {[%clk 0:00:20]}  Bxd3 {[%clk 0:01:00]} 29. exd3 {[%clk 0:00:17]}  Bxg3 {[%clk 0:01:00]} 30. Be2 {[%clk 0:00:17]}  Bf4 {[%clk 0:00:59]} 31. Qc2 {[%clk 0:00:18]}  Bxc1 {[%clk 0:00:59]} 32. Rxc1 {[%clk 0:00:19]}  Qxa6 {[%clk 0:00:57]} 33. Bd1 {[%clk 0:00:19]}  Qa3 {[%clk 0:00:55]} 34. Qd2 {[%clk 0:00:10]}  Rb1 {[%clk 0:00:53]} 0-1

[Event "December 12 Early 2023"]
[Site "https://www.chess.com"]
[Date "2023.12.12"]
[Round "1"]
[White "Rychkov, Oleg"]
[Black "Bach Ngoc Thuy Duong"]
[Result "1-0"]
[Board "97"]
[TimeControl "180+1"]
[WhiteFideId "4122852"]
[BlackFideId "12408956"]
[WhiteElo "2741"]
[BlackElo "2415"]
[WhiteTeam "RUS"]
[BlackTeam "VIE"]
[WhiteClock "0:01:38"]
[BlackClock "0:00:10"]

1. e4 {[%clk 0:03:00]}  c5 {[%clk 0:02:59]} 2. Nf3 {[%clk 0:03:00]}  d6 {[%clk 0:03:00]} 3. d4 {[%clk 0:02:59]}  cxd4 {[%clk 0:03:01]} 4. Nxd4 {[%clk 0:03:00]}  Nf6 {[%clk 0:03:01]} 5. Nc3 {[%clk 0:03:00]}  a6 {[%clk 0:03:02]} 6. f4 {[%clk 0:02:59]}  e5 {[%clk 0:02:54]} 7. Nf3 {[%clk 0:02:58]}  Qc7 {[%clk 0:02:51]} 8. Bd3 {[%clk 0:02:47]}  Nbd7 {[%clk 0:02:36]} 9. O-O {[%clk 0:02:37]}  Be7 {[%clk 0:02:13]} 10. Kh1 {[%clk 0:02:36]}  b5 {[%clk 0:02:01]} 11. fxe5 {[%clk 0:02:30]}  dxe5 {[%clk 0:02:01]} 12. Bg5 {[%clk 0:02:27]}  Bb7 {[%clk 0:01:58]} 13. a3 {[%clk 0:02:24]}  h6 {[%clk 0:01:55]} 14. Bh4 {[%clk 0:02:23]}  O-O {[%clk 0:01:46]} 15. Qe1 {[%clk 0:02:23]}  Rfe8 {[%clk 0:01:44]} 16. Bg3 {[%clk 0:02:20]}  Nh5 {[%clk 0:01:40]} 17. Nh4 {[%clk 0:02:20]}  Nxg3+ {[%clk 0:01:21]} 18. Qxg3 {[%clk 0:02:19]}  Bxh4 {[%clk 0:01:20]} 19. Qxh4 {[%clk 0:02:19]}  Nc5 {[%clk 0:01:17]} 20. Rf3 {[%clk 0:02:16]}  Qe7 {[%clk 0:01:15]} 21. Qg3 {[%clk 0:02:13]}  Qg5 {[%clk 0:01:08]} 22. Qf2 {[%clk 0:02:11]}  Ne6 {[%clk 0:01:04]} 23. Rxf7 {[%clk 0:02:07]}  Rf8 {[%clk 0:01:02]} 24. Rxf8+ {[%clk 0:01:55]}  Rxf8 {[%clk 0:01:03]} 25. Qg3 {[%clk 0:01:55]}  Qxg3 {[%clk 0:00:41]} 26. hxg3 {[%clk 0:01:55]}  Nc5 {[%clk 0:00:35]} 27. Kg1 {[%clk 0:01:51]}  Rd8 {[%clk 0:00:34]} 28. Rd1 {[%clk 0:01:46]}  Kf8 {[%clk 0:00:17]} 29. b4 {[%clk 0:01:39]}  Nxe4 {[%clk 0:00:13]} 30. Nxe4 {[%clk 0:01:38]}  Bxe4 {[%clk 0:00:10]} 31. Rf1+ {[%clk 0:01:38]} 1-0

[Event "December 12 Early 2023"]
[Site "https://www.chess.com"]
[Date "2023.12.12"]
[Round "1"]
[White "Karthik, Advaith"]
[Black "Krysa, Leandro"]
[Result "0-1"]
[Board "98"]
[TimeControl "180+1"]
[WhiteFideId "30946050"]
[BlackFideId "116807"]
[WhiteElo "2415"]
[BlackElo "2737"]
[WhiteTeam "USA"]
[BlackTeam "ARG"]
[WhiteClock "0:00:47"]
[BlackClock "0:01:05"]

1. d4 {[%clk 0:02:57]}  Nf6 {[%clk 0:02:59]} 2. c4 {[%clk 0:02:57]}  g6 {[%clk 0:02:59]} 3. Nc3 {[%clk 0:02:57]}  d5 {[%clk 0:03:00]} 4. Nf3 {[%clk 0:02:57]}  Bg7 {[%clk 0:02:59]} 5. Bg5 {[%clk 0:02:57]}  Ne4 {[%clk 0:02:58]} 6. cxd5 {[%clk 0:02:57]}  Nxg5 {[%clk 0:02:57]} 7. Nxg5 {[%clk 0:02:57]}  e6 {[%clk 0:02:58]} 8. Qd2 {[%clk 0:02:58]}  h6 {[%clk 0:02:58]} 9. Nh3 {[%clk 0:02:58]}  exd5 {[%clk 0:02:59]} 10. Nf4 {[%clk 0:02:58]}  c6 {[%clk 0:02:57]} 11. e3 {[%clk 0:02:58]}  O-O {[%clk 0:02:56]} 12. Be2 {[%clk 0:02:58]}  Qd6 {[%clk 0:02:49]} 13. O-O {[%clk 0:02:56]}  h5 {[%clk 0:02:41]} 14. Nd3 {[%clk 0:02:49]}  h4 {[%clk 0:02:38]} 15. b4 {[%clk 0:02:43]}  h3 {[%clk 0:02:31]} 16. g3 {[%clk 0:02:44]}  Bf5 {[%clk 0:02:31]} 17. b5 {[%clk 0:02:36]}  Nd7 {[%clk 0:02:31]} 18. bxc6 {[%clk 0:02:36]}  bxc6 {[%clk 0:02:31]} 19. Rfc1 {[%clk 0:02:32]}  Rab8 {[%clk 0:02:21]} 20. Rab1 {[%clk 0:02:31]}  Qa3 {[%clk 0:02:11]} 21. Bf1 {[%clk 0:02:10]}  Rb6 {[%clk 0:01:47]} 22. Rxb6 {[%clk 0:01:41]}  Nxb6 {[%clk 0:01:30]} 23. Nf4 {[%clk 0:01:39]}  Nc4 {[%clk 0:01:27]} 24. Qe1 {[%clk 0:01:25]}  Nb2 {[%clk 0:01:15]} 25. Qd2 {[%clk 0:01:01]}  Nc4 {[%clk 0:01:15]} 26. Qd1 {[%clk 0:00:56]}  Bh6 {[%clk 0:01:07]} 27. Qb3 {[%clk 0:00:47]}  Qxc1 {[%clk 0:01:05]} 0-1